fUST/lending_fUST_20250318
["ID","MTS","AMOUNT","RATE_DAILY","PERIOD"]
[356318442,1742251843072,-500.0,8.219e-05,2]
[356318444,1742251843082,-2813.0,8.219e-05,2]
[356318446,1742251843091,-500.0,8.219e-05,2]
[356318448,1742251843100,-1988.5,8.219e-05,2]
[356318450,1742251843109,-100607.36,8.219e-05,2]
[356318452,1742251843119,-500.0,8.219e-05,2]
[356318454,1742251843129,-500.0,8.219e-05,2]
[356318456,1742251843138,-1108.21,8.219e-05,2]
[356318458,1742251843148,-703.29,8.219e-05,2]
[356318460,1742251843158,-2360.14,8.219e-05,2]
[356318462,1742251843167,-500.0,8.219e-05,2]
[356318463,1742251843177,-500.0,8.219e-05,2]
[356318464,1742251843186,-500.0,8.219e-05,2]
[356318465,1742251843196,-1035.24,8.219e-05,2]
[356318466,1742251843205,-524.04,8.219e-05,2]
[356318467,1742251843214,-623.5,8.219e-05,2]
[356318468,1742251843224,-500.0,8.219e-05,2]
[356318469,1742251843233,-1237.05,8.219e-05,2]
[356318470,1742251843242,-500.0,8.219e-05,2]
[356318471,1742251843252,-6463.16,8.219e-05,2]
[356318472,1742251843262,-3307.91,8.219e-05,2]
[356318473,1742251843271,-500.0,8.219e-05,2]
[356318474,1742251843284,-500.0,8.219e-05,2]
[356318475,1742251843294,-500.0,8.219e-05,2]
[356318476,1742251843304,-5464.96,8.219e-05,2]
[356318477,1742251843313,-2397.68,8.219e-05,2]
[356318478,1742251843323,-647.79,8.219e-05,2]
[356318479,1742251843332,-500.0,8.219e-05,2]
[356318480,1742251843341,-500.0,8.219e-05,2]
[356318481,1742251843352,-500.0,8.219e-05,2]
[356318482,1742251843361,-554.04,8.219e-05,2]
[356318483,1742251843371,-1039.55,8.219e-05,2]
[356318484,1742251843380,-500.0,8.219e-05,2]
[356318485,1742251843389,-500.0,8.219e-05,2]
[356318486,1742251843398,-823.13,8.219e-05,2]
[356318487,1742251843407,-500.0,8.219e-05,2]
[356318488,1742251843417,-500.0,8.219e-05,2]
[356318489,1742251843426,-7716.56,8.219e-05,2]
[356318490,1742251843436,-500.0,8.219e-05,2]
[356318491,1742251843448,-951.33,8.219e-05,2]
[356318492,1742251843457,-500.0,8.219e-05,2]
[356318493,1742251843466,-551.53,8.219e-05,2]
[356318494,1742251843479,-1568.83,8.219e-05,2]
[356318495,1742251843488,-500.0,8.219e-05,2]
[356318496,1742251843497,-500.0,8.219e-05,2]
[356318497,1742251843508,-500.0,8.219e-05,2]
[356318498,1742251843517,-500.0,8.219e-05,2]
[356318499,1742251843527,-500.0,8.219e-05,2]
[356318500,1742251843536,-500.0,8.219e-05,2]
[356318501,1742251843546,-241.99634962,8.219e-05,2]
[356318502,1742251843556,-500.0,8.219e-05,2]
[356318503,1742251843566,-7053.48112582,8.219e-05,2]
[356318505,1742251843834,-262.15887418,8.219e-05,2]
[356318506,1742251843844,-500.0,8.219e-05,2]
[356318507,1742251843854,-237.84112582,8.219e-05,2]
[356318550,1742253032864,-198.58612671,7.872e-05,2]
[356318551,1742253032874,-812.9426699,7.972e-05,2]
[356318552,1742253032884,-1000.0,8.118e-05,2]
[356318553,1742253032893,-1000.0,8.118e-05,2]
[356318554,1742253032903,-300.0,8.118e-05,2]
[356318555,1742253032913,-40514.51345957,8.119e-05,2]
[356318556,1742253032922,-1000.0,8.218e-05,2]
[356318557,1742253032933,-1000.0,8.218e-05,2]
[356318558,1742253032942,-166.66,8.218e-05,2]
[356318559,1742253032952,-500.0,8.219e-05,2]
[356318560,1742253032961,-500.0,8.219e-05,2]
[356318561,1742253032971,-500.0,8.219e-05,2]
[356318562,1742253032980,-500.00000003,8.219e-05,2]
[356318563,1742253032989,-500.0,8.219e-05,2]
[356318564,1742253032999,-500.0,8.219e-05,2]
[356318565,1742253033008,-448.37818686,8.219e-05,2]
[356318566,1742253033018,-500.0,8.219e-05,2]
[356318567,1742253033027,-202.968479,8.219e-05,2]
[356318568,1742253033037,-202.968479,8.219e-05,2]
[356318569,1742253033047,-500.0,8.219e-05,2]
[356318570,1742253033056,-202.968479,8.219e-05,2]
[356318571,1742253033066,-202.968479,8.219e-05,2]
[356318572,1742253033076,-500.0,8.219e-05,2]
[356318573,1742253033085,-500.0,8.219e-05,2]
[356318574,1742253033095,-500.0,8.219e-05,2]
[356318575,1742253033105,-500.0,8.219e-05,2]
[356318576,1742253033115,-500.0,8.219e-05,2]
[356318577,1742253033124,-722.79,8.219e-05,2]
[356318578,1742253033134,-500.0,8.219e-05,2]
[356318579,1742253033144,-859.84,8.219e-05,2]
[356318580,1742253033154,-500.0,8.219e-05,2]
[356318581,1742253033163,-500.0,8.219e-05,2]
[356318582,1742253033173,-500.0,8.219e-05,2]
[356318583,1742253033182,-500.0,8.219e-05,2]
[356318584,1742253033192,-500.0,8.219e-05,2]
[356318585,1742253033202,-500.0,8.219e-05,2]
[356318586,1742253033212,-500.0,8.219e-05,2]
[356318587,1742253033222,-500.0,8.219e-05,2]
[356318588,1742253033232,-500.0,8.219e-05,2]
[356318589,1742253033242,-608.28,8.219e-05,2]
[356318590,1742253033252,-500.0,8.219e-05,2]
[356318591,1742253033262,-500.0,8.219e-05,2]
[356318592,1742253033271,-500.0,8.219e-05,2]
[356318593,1742253033281,-500.0,8.219e-05,2]
[356318594,1742253033291,-500.0,8.219e-05,2]
[356318595,1742253033301,-500.0,8.219e-05,2]
[356318596,1742253033310,-500.0,8.219e-05,2]
[356318597,1742253033318,-500.0,8.219e-05,2]
[356318598,1742253033328,-500.0,8.219e-05,2]
[356318599,1742253033337,-500.0,8.219e-05,2]
[356318600,1742253033347,-500.0,8.219e-05,2]
[356318601,1742253033357,-500.0,8.219e-05,2]
[356318602,1742253033366,-500.0,8.219e-05,2]
[356318603,1742253033376,-500.0,8.219e-05,2]
[356318604,1742253033385,-500.0,8.219e-05,2]
[356318605,1742253033395,-500.0,8.219e-05,2]
[356318606,1742253033404,-500.0,8.219e-05,2]
[356318607,1742253033414,-294.66712673,8.219e-05,2]
[356318608,1742253033423,-520.42,8.219e-05,2]
[356318609,1742253033432,-500.0,8.219e-05,2]
[356318610,1742253033442,-500.0,8.219e-05,2]
[356318611,1742253033452,-500.0,8.219e-05,2]
[356318612,1742253033462,-500.0,8.219e-05,2]
[356318613,1742253033472,-500.0,8.219e-05,2]
[356318614,1742253033482,-673.99,8.219e-05,2]
[356318615,1742253033492,-500.0,8.219e-05,2]
[356318616,1742253033502,-2128.6,8.219e-05,2]
[356318617,1742253033512,-500.0,8.219e-05,2]
[356318618,1742253033522,-500.0,8.219e-05,2]
[356318619,1742253033532,-1932.64,8.219e-05,2]
[356318620,1742253033541,-500.0,8.219e-05,2]
[356318621,1742253033551,-97337.76,8.219e-05,2]
[356318622,1742253033562,-500.0,8.219e-05,2]
[356318623,1742253033571,-1082.86,8.219e-05,2]
[356318624,1742253033581,-2261.8,8.219e-05,2]
[356318625,1742253033591,-1012.94,8.219e-05,2]
[356318626,1742253033601,-215.65,8.219e-05,2]
[356318627,1742253033610,-620.8,8.219e-05,2]
[356318628,1742253033620,-597.53,8.219e-05,2]
[356318629,1742253033631,-195.39,8.219e-05,2]
[356318630,1742253033641,-500.0,8.219e-05,2]
[356318631,1742253033651,-500.0,8.219e-05,2]
[356318632,1742253033661,-500.0,8.219e-05,2]
[356318633,1742253033671,-500.0,8.219e-05,2]
[356318634,1742253033680,-6193.86,8.219e-05,2]
[356318635,1742253033691,-3170.08,8.219e-05,2]
[356318636,1742253033700,-5237.25,8.219e-05,2]
[356318637,1742253033710,-1401.18,8.219e-05,2]
[356318638,1742253033720,-500.0,8.219e-05,2]
[356318639,1742253033730,-530.95,8.219e-05,2]
[356318640,1742253033739,-500.0,8.219e-05,2]
[356318641,1742253033748,-500.0,8.219e-05,2]
[356318642,1742253033758,-500.0,8.219e-05,2]
[356318643,1742253033768,-996.24,8.219e-05,2]
[356318644,1742253033778,-7395.03,8.219e-05,2]
[356318645,1742253033788,-500.0,8.219e-05,2]
[356318646,1742253033798,-500.0,8.219e-05,2]
[356318647,1742253033808,-1376.8,8.219e-05,2]
[356318648,1742253033818,-528.55,8.219e-05,2]
[356318649,1742253033828,-500.0,8.219e-05,2]
[356318650,1742253033839,-1525.17,8.219e-05,2]
[356318651,1742253033849,-7046.24,8.219e-05,2]
[356318652,1742253033859,-500.0,8.219e-05,2]
[356318653,1742253033869,-911.69,8.219e-05,2]
[356318654,1742253033878,-500.0,8.219e-05,2]
[356318655,1742253033888,-844.51,8.219e-05,2]
[356318656,1742253033898,-500.0,8.219e-05,2]
[356318657,1742253033907,-890.75,8.219e-05,2]
[356318658,1742253033916,-500.0,8.219e-05,2]
[356318659,1742253033926,-505.03,8.219e-05,2]
[356318660,1742253033936,-500.0,8.219e-05,2]
[356318661,1742253033945,-8048.29,8.219e-05,2]
[356318662,1742253033955,-527.15297247,8.219e-05,2]
[356318663,1742253033964,-500.0,8.219e-05,2]
[356318664,1742253034161,-625.35,8.219e-05,2]
[356318665,1742253034172,-711.34,8.219e-05,2]
[356318666,1742253034182,-500.0,8.219e-05,2]
[356318667,1742253034192,-781.29,8.219e-05,2]
[356318668,1742253034202,-535.75,8.219e-05,2]
[356318669,1742253034212,-500.0,8.219e-05,2]
[356318670,1742253034222,-299.99991055,8.219e-05,2]
[356318671,1742253034232,-716.38,8.219e-05,2]
[356318672,1742253034243,-500.0,8.219e-05,2]
[356318673,1742253034253,-500.0,8.219e-05,2]
[356318674,1742253034263,-500.0,8.219e-05,2]
[356318675,1742253034273,-500.38,8.219e-05,2]
[356318676,1742253034283,-5369.92,8.219e-05,2]
[356318677,1742253034293,-500.0,8.219e-05,2]
[356318678,1742253034304,-500.0,8.219e-05,2]
[356318679,1742253034314,-500.0,8.219e-05,2]
[356318680,1742253034326,-500.0,8.219e-05,2]
[356318681,1742253034339,-500.0,8.219e-05,2]
[356318682,1742253034351,-847.31,8.219e-05,2]
[356318683,1742253034362,-708.58,8.219e-05,2]
[356318684,1742253034372,-500.0,8.219e-05,2]
[356318685,1742253034382,-596.23,8.219e-05,2]
[356318686,1742253034393,-500.0,8.219e-05,2]
[356318687,1742253034403,-1592.33,8.219e-05,2]
[356318688,1742253034413,-500.0,8.219e-05,2]
[356318689,1742253034423,-500.0,8.219e-05,2]
[356318690,1742253034432,-1766.21,8.219e-05,2]
[356318691,1742253034443,-500.0,8.219e-05,2]
[356318692,1742253034452,-3475.54,8.219e-05,2]
[356318693,1742253034462,-3497.91,8.219e-05,2]
[356318694,1742253034472,-500.0,8.219e-05,2]
[356318695,1742253034482,-3081.23,8.219e-05,2]
[356318696,1742253034491,-500.0,8.219e-05,2]
[356318697,1742253034501,-500.0,8.219e-05,2]
[356318698,1742253034511,-1665.05,8.219e-05,2]
[356318699,1742253034520,-512.75,8.219e-05,2]
[356318700,1742253034530,-500.0,8.219e-05,2]
[356318701,1742253034540,-678.99,8.219e-05,2]
[356318702,1742253034549,-500.0,8.219e-05,2]
[356318703,1742253034559,-500.0,8.219e-05,2]
[356318704,1742253034569,-500.0,8.219e-05,2]
[356318705,1742253034579,-3258.39,8.219e-05,2]
[356318706,1742253034588,-1053.18,8.219e-05,2]
[356318707,1742253034598,-1000.0,8.219e-05,2]
[356318708,1742253034607,-202.968479,8.472e-05,2]
[356318709,1742253034616,-202.968479,8.472e-05,2]
[356318710,1742253034625,-202.968479,8.472e-05,2]
[356318711,1742253034634,-202.968479,8.472e-05,2]
[356318712,1742253034644,-500.0,8.493e-05,2]
[356318713,1742253034653,-500.0,8.493e-05,2]
[356318714,1742253034662,-537.55854723,8.493e-05,2]
[356318715,1742253034671,-500.0,8.493e-05,2]
[356318716,1742253034680,-500.0,8.493e-05,2]
[356318717,1742253034690,-202.968479,8.493e-05,2]
[356318718,1742253034702,-202.968479,8.493e-05,2]
[356318719,1742253034711,-202.968479,8.493e-05,2]
[356318720,1742253034719,-202.968479,8.493e-05,2]
[356318721,1742253034729,-500.0,8.493e-05,2]
[356318722,1742253034739,-202.968479,8.493e-05,2]
[356318723,1742253034749,-202.968479,8.493e-05,2]
[356318724,1742253034758,-202.968479,8.493e-05,2]
[356318725,1742253034768,-202.968479,8.493e-05,2]
[356318726,1742253034777,-202.968479,8.493e-05,2]
[356318727,1742253034786,-202.968479,8.493e-05,2]
[356318728,1742253034796,-500.0,8.493e-05,2]
[356318729,1742253034806,-500.0,8.493e-05,2]
[356318730,1742253034815,-500.0,8.493e-05,2]
[356318731,1742253034824,-500.0,8.493e-05,2]
[356318732,1742253034833,-722.79,8.493e-05,2]
[356318733,1742253034842,-570.18,8.493e-05,2]
[356318734,1742253034851,-859.84,8.493e-05,2]
[356318735,1742253034861,-500.0,8.493e-05,2]
[356318736,1742253034871,-173.55,8.493e-05,2]
[356318737,1742253034880,-500.0,8.493e-05,2]
[356318738,1742253034889,-306.15,8.493e-05,2]
[356318739,1742253034898,-500.0,8.493e-05,2]
[356318740,1742253034907,-500.0,8.493e-05,2]
[356318741,1742253034917,-500.0,8.493e-05,2]
[356318742,1742253034926,-500.0,8.493e-05,2]
[356318743,1742253034935,-500.0,8.493e-05,2]
[356318744,1742253034944,-608.28,8.493e-05,2]
[356318745,1742253034953,-500.0,8.493e-05,2]
[356318746,1742253034962,-500.0,8.493e-05,2]
[356318747,1742253034972,-500.0,8.493e-05,2]
[356318748,1742253034981,-500.0,8.493e-05,2]
[356318749,1742253034990,-611.07887418,8.493e-05,2]
[356318750,1742253034999,-500.0,8.493e-05,2]
[356318751,1742253035010,-500.0,8.493e-05,2]
[356318752,1742253035019,-500.0,8.493e-05,2]
[356318753,1742253035029,-500.0,8.493e-05,2]
[356318754,1742253035039,-500.0,8.493e-05,2]
[356318755,1742253035049,-500.0,8.493e-05,2]
[356318756,1742253035058,-500.0,8.493e-05,2]
[356318757,1742253035067,-500.0,8.493e-05,2]
[356318758,1742253035076,-500.0,8.493e-05,2]
[356318759,1742253035085,-500.0,8.493e-05,2]
[356318760,1742253035095,-634.6,8.493e-05,2]
[356318761,1742253035105,-520.42,8.493e-05,2]
[356318762,1742253035116,-500.0,8.493e-05,2]
[356318763,1742253035126,-500.0,8.493e-05,2]
[356318764,1742253035135,-500.0,8.493e-05,2]
[356318765,1742253035144,-500.0,8.493e-05,2]
[356318766,1742253035154,-500.0,8.493e-05,2]
[356318767,1742253035163,-673.99,8.493e-05,2]
[356318768,1742253035173,-500.0,8.493e-05,2]
[356318769,1742253035183,-2128.6,8.493e-05,2]
[356318770,1742253035192,-500.0,8.493e-05,2]
[356318771,1742253035202,-500.0,8.493e-05,2]
[356318772,1742253035212,-1932.64,8.493e-05,2]
[356318773,1742253035221,-500.0,8.493e-05,2]
[356318774,1742253035232,-97337.76,8.493e-05,2]
[356318775,1742253035242,-500.0,8.493e-05,2]
[356318776,1742253035252,-1082.86,8.493e-05,2]
[356318777,1742253035262,-2261.8,8.493e-05,2]
[356318778,1742253035273,-1012.94,8.493e-05,2]
[356318779,1742253035283,-620.8,8.493e-05,2]
[356318780,1742253035293,-597.53,8.493e-05,2]
[356318781,1742253035303,-500.0,8.493e-05,2]
[356318782,1742253035313,-210.13033896,8.493e-05,2]
[356318783,1742253035323,-500.0,8.493e-05,2]
[356318784,1742253035332,-500.0,8.493e-05,2]
[356318785,1742253035343,-6193.86,8.493e-05,2]
[356318786,1742253035353,-3170.08,8.493e-05,2]
[356318787,1742253035362,-5237.25,8.493e-05,2]
[356318788,1742253035371,-1401.18,8.493e-05,2]
[356318789,1742253035381,-500.0,8.493e-05,2]
[356318790,1742253035391,-530.95,8.493e-05,2]
[356318791,1742253035401,-212.54,8.493e-05,2]
[356318792,1742253035411,-500.0,8.493e-05,2]
[356318793,1742253035421,-996.24,8.493e-05,2]
[356318794,1742253035432,-7395.03,8.493e-05,2]
[356318795,1742253035442,-500.0,8.493e-05,2]
[356318796,1742253035453,-1376.8,8.493e-05,2]
[356318797,1742253035463,-528.55,8.493e-05,2]
[356318798,1742253035472,-500.0,8.493e-05,2]
[356318799,1742253035481,-1525.17,8.493e-05,2]
[356318800,1742253035491,-7046.24,8.493e-05,2]
[356318801,1742253035500,-500.0,8.493e-05,2]
[356318802,1742253035509,-911.69,8.493e-05,2]
[356318803,1742253035519,-500.0,8.493e-05,2]
[356318804,1742253035529,-844.51,8.493e-05,2]
[356318805,1742253035538,-500.0,8.493e-05,2]
[356318806,1742253035547,-890.75,8.493e-05,2]
[356318807,1742253035557,-500.0,8.493e-05,2]
[356318808,1742253035566,-380.47121454,8.493e-05,2]
[356318809,1742253035582,-124.55878546,8.493e-05,2]
[356318810,1742253035592,-500.0,8.493e-05,2]
[356318811,1742253035601,-8048.29,8.493e-05,2]
[356318812,1742253035611,-500.0,8.493e-05,2]
[356318813,1742253035621,-625.35,8.493e-05,2]
[356318814,1742253035630,-711.34,8.493e-05,2]
[356318815,1742253035640,-500.0,8.493e-05,2]
[356318816,1742253035650,-781.29,8.493e-05,2]
[356318817,1742253035659,-535.75,8.493e-05,2]
[356318818,1742253035669,-716.38,8.493e-05,2]
[356318819,1742253035678,-5369.92,8.493e-05,2]
[356318820,1742253035688,-500.0,8.493e-05,2]
[356318821,1742253035698,-500.0,8.493e-05,2]
[356318822,1742253035707,-500.0,8.493e-05,2]
[356318823,1742253035718,-847.31,8.493e-05,2]
[356318824,1742253035729,-708.58,8.493e-05,2]
[356318825,1742253035738,-500.0,8.493e-05,2]
[356318826,1742253035747,-2303.61762218,8.493e-05,2]
[356318827,1742253035757,-596.23,8.493e-05,2]
[356318828,1742253035766,-1592.33,8.493e-05,2]
[356318829,1742253035775,-500.0,8.493e-05,2]
[356318830,1742253035785,-831.92968422,8.493e-05,2]
[356318854,1742253046566,-311.30088187,8.219e-05,2]
[356318855,1742253046578,-188.69911813,8.219e-05,2]
[356318856,1742253046587,-617.82,8.219e-05,2]
[356318857,1742253046597,-500.0,8.219e-05,2]
[356318858,1742253046606,-992.62,8.219e-05,2]
[356318859,1742253046616,-1636.78557571,8.219e-05,2]
[356318860,1742253046823,-314.43442429,8.219e-05,2]
[356318861,1742253046833,-609.7070024,8.238e-05,2]
[356318862,1742253046842,-319.44558151,8.493e-05,2]
[356318901,1742253888753,767.0,0.00014,30]
[356318942,1742254232855,-270.22953894,8.118e-05,2]
[356318943,1742254232867,-16.93096863,8.118e-05,2]
[356318953,1742254238574,-351.87264925,8.118e-05,2]
[356318954,1742254238585,-300.0,8.118e-05,2]
[356318955,1742254238595,-2014.12735075,8.119e-05,2]
[356319032,1742254246738,-914.6,8.119e-05,2]
[356319044,1742254504394,-258.16253251,8.018e-05,2]
[356319045,1742254504420,-41.83737804,8.018e-05,2]
[356319051,1742254818665,1312.84,0.00014,30]
[356319126,1742255432140,-164.61607143,8.018e-05,2]
[356319128,1742255432151,-553.50817551,8.018e-05,2]
[356319130,1742255432160,-557.28923892,8.018e-05,2]
[356319132,1742255432171,-500.0,8.018e-05,2]
[356319135,1742255432181,-300.0,8.018e-05,2]
[356319137,1742255432191,-63908.40434365,8.019e-05,2]
[356319140,1742255432274,-158091.59565635,8.019e-05,2]
[356319142,1742255432283,-500.0,8.193e-05,2]
[356319143,1742255432292,-500.0,8.193e-05,2]
[356319144,1742255432302,-500.0,8.193e-05,2]
[356319145,1742255432311,-500.0,8.193e-05,2]
[356319146,1742255432320,-500.0,8.219e-05,2]
[356319147,1742255432330,-610.23009465,8.219e-05,2]
[356319148,1742255432339,-500.0,8.219e-05,2]
[356319149,1742255432349,-500.0,8.219e-05,2]
[356319150,1742255432358,-532.27993076,8.219e-05,2]
[356319151,1742255432367,-500.0,8.219e-05,2]
[356319152,1742255432377,-500.0,8.219e-05,2]
[356319153,1742255432387,-524.0289099,8.219e-05,2]
[356319154,1742255432396,-500.0,8.219e-05,2]
[356319155,1742255432405,-500.0,8.219e-05,2]
[356319156,1742255432415,-500.0,8.219e-05,2]
[356319157,1742255432425,-546.55,8.219e-05,2]
[356319158,1742255432434,-619.42,8.219e-05,2]
[356319159,1742255432444,-500.0,8.219e-05,2]
[356319160,1742255432453,-500.0,8.219e-05,2]
[356319161,1742255432462,-500.0,8.219e-05,2]
[356319162,1742255432471,-500.0,8.219e-05,2]
[356319163,1742255432481,-500.0,8.219e-05,2]
[356319164,1742255432490,-500.0,8.219e-05,2]
[356319165,1742255432500,-500.0,8.219e-05,2]
[356319166,1742255432509,-500.0,8.219e-05,2]
[356319167,1742255432519,-500.0,8.219e-05,2]
[356319168,1742255432528,-500.0,8.219e-05,2]
[356319169,1742255432537,-500.0,8.219e-05,2]
[356319170,1742255432547,-395.86,8.219e-05,2]
[356319171,1742255432556,-500.0,8.219e-05,2]
[356319172,1742255432565,-500.0,8.219e-05,2]
[356319173,1742255432575,-500.0,8.219e-05,2]
[356319174,1742255432584,-500.0,8.219e-05,2]
[356319175,1742255432593,-500.0,8.219e-05,2]
[356319176,1742255432603,-500.0,8.219e-05,2]
[356319177,1742255432612,-500.0,8.219e-05,2]
[356319178,1742255432622,-500.0,8.219e-05,2]
[356319179,1742255432632,-500.0,8.219e-05,2]
[356319180,1742255432642,-500.0,8.219e-05,2]
[356319181,1742255432651,-500.0,8.219e-05,2]
[356319182,1742255432660,-500.0,8.219e-05,2]
[356319183,1742255432670,-500.0,8.219e-05,2]
[356319184,1742255432679,-500.0,8.219e-05,2]
[356319185,1742255432688,-500.0,8.219e-05,2]
[356319186,1742255432698,-500.0,8.219e-05,2]
[356319187,1742255432707,-500.0,8.219e-05,2]
[356319188,1742255432716,-500.0,8.219e-05,2]
[356319189,1742255432726,-500.0,8.219e-05,2]
[356319190,1742255432736,-500.0,8.219e-05,2]
[356319191,1742255432746,-500.0,8.219e-05,2]
[356319192,1742255432755,-500.0,8.219e-05,2]
[356319193,1742255432764,-500.0,8.219e-05,2]
[356319194,1742255432773,-500.0,8.219e-05,2]
[356319195,1742255432783,-500.0,8.219e-05,2]
[356319196,1742255432792,-500.0,8.219e-05,2]
[356319197,1742255432801,-500.0,8.219e-05,2]
[356319198,1742255432811,-500.0,8.219e-05,2]
[356319199,1742255432819,-500.0,8.219e-05,2]
[356319200,1742255432829,-500.0,8.219e-05,2]
[356319201,1742255432838,-500.0,8.219e-05,2]
[356319202,1742255432849,-500.0,8.219e-05,2]
[356319203,1742255432861,-500.0,8.219e-05,2]
[356319204,1742255432871,-500.0,8.219e-05,2]
[356319205,1742255432880,-500.0,8.219e-05,2]
[356319206,1742255432889,-500.0,8.219e-05,2]
[356319207,1742255432898,-500.0,8.219e-05,2]
[356319208,1742255432908,-500.0,8.219e-05,2]
[356319209,1742255432917,-500.0,8.219e-05,2]
[356319210,1742255432927,-725.06,8.219e-05,2]
[356319211,1742255432936,-500.0,8.219e-05,2]
[356319212,1742255432946,-500.0,8.219e-05,2]
[356319213,1742255432955,-856.59,8.219e-05,2]
[356319214,1742255432965,-500.0,8.219e-05,2]
[356319215,1742255432975,-500.0,8.219e-05,2]
[356319216,1742255432984,-500.0,8.219e-05,2]
[356319217,1742255432994,-500.0,8.219e-05,2]
[356319218,1742255433005,-500.0,8.219e-05,2]
[356319219,1742255433014,-500.0,8.219e-05,2]
[356319220,1742255433023,-500.0,8.219e-05,2]
[356319221,1742255433033,-500.0,8.219e-05,2]
[356319222,1742255433043,-500.0,8.219e-05,2]
[356319223,1742255433053,-500.0,8.219e-05,2]
[356319224,1742255433063,-500.0,8.219e-05,2]
[356319225,1742255433072,-500.0,8.219e-05,2]
[356319226,1742255433082,-500.0,8.219e-05,2]
[356319227,1742255433091,-500.07288227,8.219e-05,2]
[356319228,1742255433101,-500.0,8.219e-05,2]
[356319229,1742255433110,-500.0,8.219e-05,2]
[356319230,1742255433130,-495.0,8.219e-05,2]
[356319231,1742255433142,-500.0,8.219e-05,2]
[356319232,1742255433152,-500.0,8.219e-05,2]
[356319233,1742255433162,-416.72762937,8.219e-05,2]
[356319234,1742255433172,-500.0,8.219e-05,2]
[356319235,1742255433181,-500.0,8.219e-05,2]
[356319236,1742255433191,-500.0,8.219e-05,2]
[356319237,1742255433201,-500.0,8.219e-05,2]
[356319238,1742255433210,-500.0,8.219e-05,2]
[356319239,1742255433220,-500.0,8.219e-05,2]
[356319240,1742255433230,-628.87,8.219e-05,2]
[356319241,1742255433241,-508.83,8.219e-05,2]
[356319242,1742255433251,-500.0,8.219e-05,2]
[356319243,1742255433261,-500.0,8.219e-05,2]
[356319244,1742255433271,-500.0,8.219e-05,2]
[356319245,1742255433281,-500.0,8.219e-05,2]
[356319246,1742255433291,-500.0,8.219e-05,2]
[356319247,1742255433301,-520.27766781,8.219e-05,2]
[356319248,1742255433310,-500.0,8.219e-05,2]
[356319249,1742255433320,-500.0,8.219e-05,2]
[356319250,1742255433330,-500.0,8.219e-05,2]
[356319251,1742255433340,-500.0,8.219e-05,2]
[356319252,1742255433350,-572.46,8.219e-05,2]
[356319253,1742255433360,-500.0,8.219e-05,2]
[356319254,1742255433371,-500.0,8.219e-05,2]
[356319255,1742255433381,-500.0,8.219e-05,2]
[356319256,1742255433391,-500.0,8.219e-05,2]
[356319257,1742255433401,-500.0,8.219e-05,2]
[356319258,1742255433411,-500.0,8.219e-05,2]
[356319259,1742255433421,-500.0,8.219e-05,2]
[356319260,1742255433430,-500.0,8.219e-05,2]
[356319261,1742255433440,-500.0,8.219e-05,2]
[356319262,1742255433450,-500.0,8.219e-05,2]
[356319263,1742255433460,-517.12887266,8.219e-05,2]
[356319264,1742255433470,-500.0,8.219e-05,2]
[356319265,1742255433480,-500.0,8.219e-05,2]
[356319266,1742255433489,-500.0,8.219e-05,2]
[356319267,1742255433499,-500.0,8.219e-05,2]
[356319268,1742255433509,-500.0,8.219e-05,2]
[356319269,1742255433519,-500.0,8.219e-05,2]
[356319270,1742255433528,-500.0,8.219e-05,2]
[356319271,1742255433538,-383.65011932,8.219e-05,2]
[356319272,1742255433548,-500.0,8.219e-05,2]
[356319273,1742255433558,-500.0,8.219e-05,2]
[356319274,1742255433568,-500.0,8.219e-05,2]
[356319275,1742255433577,-500.0,8.219e-05,2]
[356319276,1742255433587,-500.0,8.219e-05,2]
[356319277,1742255433597,-500.0,8.219e-05,2]
[356319278,1742255433608,-500.0,8.219e-05,2]
[356319279,1742255433618,-500.0,8.219e-05,2]